[Event "*** Titled Tuesday Blitz"]
[Site "Chess.com"]
[Date "2020.04.21"]
[Round "5"]
[White "StegariuVlad"]
[Black "chessfrendz"]
[Result "1-0"]
[WhiteElo "2518"]
[BlackElo "2339"]
[TimeControl "180+1"]
[EndTime "10:54:24 PDT"]
[Termination "StegariuVlad won by resignation"]

1. e4 {[%clk 0:02:58.9]} 1... e5 {[%clk 0:02:58.8]} 2. Nf3 {[%clk 0:02:58.4]}
2... Nc6 {[%clk 0:02:58.5]} 3. Bb5 {[%clk 0:02:57.6]} 3... a6 {[%clk 0:02:58.2]}
4. Ba4 {[%clk 0:02:58]} 4... Nf6 {[%clk 0:02:56.8]} 5. O-O {[%clk 0:02:57.3]}
5... b5 {[%clk 0:02:50.1]} 6. Bb3 {[%clk 0:02:56]} 6... Be7 {[%clk 0:02:49.9]}
7. d4 {[%clk 0:02:47.2]} 7... exd4 {[%clk 0:02:33.6]} 8. e5 {[%clk 0:02:45.6]}
8... Ne4 {[%clk 0:02:32.8]} 9. Bd5 {[%clk 0:02:39.9]} 9... Nc5 {[%clk
0:02:31.8]} 10. Nxd4 {[%clk 0:02:36.3]} 10... Bb7 {[%clk 0:02:23.3]} 11. Nf5
{[%clk 0:02:27.8]} 11... O-O {[%clk 0:02:03.4]} 12. Bh6 {[%clk 0:02:09]} 12...
Nxe5 {[%clk 0:01:53.7]} 13. Bxb7 {[%clk 0:02:04.6]} 13... Nxb7 {[%clk
0:01:52.6]} 14. Bxg7 {[%clk 0:02:04.4]} 14... Bf6 {[%clk 0:01:49.8]} 15. Bxf8
{[%clk 0:01:59.4]} 15... Qxf8 {[%clk 0:01:48]} 16. Nc3 {[%clk 0:01:59]} 16... d6
{[%clk 0:01:46.4]} 17. f4 {[%clk 0:01:51.8]} 17... Ng6 {[%clk 0:01:45.1]} 18.
Qg4 {[%clk 0:01:49.1]} 18... Bxc3 {[%clk 0:01:43.1]} 19. bxc3 {[%clk 0:01:47.5]}
19... Kh8 {[%clk 0:01:37.5]} 20. Rae1 {[%clk 0:01:44.3]} 20... Nc5 {[%clk
0:01:35.9]} 21. h4 {[%clk 0:01:42.9]} 21... Ne6 {[%clk 0:01:23.4]} 22. h5 {[%clk
0:01:41.7]} 22... Ne7 {[%clk 0:01:22.2]} 23. Nxe7 {[%clk 0:01:33.1]} 23... Qxe7
{[%clk 0:01:21.4]} 24. f5 {[%clk 0:01:33]} 24... Qg5 {[%clk 0:01:20.9]} 25. Qf3
{[%clk 0:01:31.1]} 25... Rg8 {[%clk 0:01:12.4]} 26. fxe6 {[%clk 0:01:29.9]} 1-0

[Event "*** Titled Tuesday Blitz"]
[Site "Chess.com"]
[Date "2020.04.21"]
[Round "5"]
[White "TigrVShlyape"]
[Black "Tashik"]
[Result "1-0"]
[WhiteElo "2855"]
[BlackElo "2547"]
[TimeControl "180+1"]
[EndTime "10:54:31 PDT"]
[Termination "TigrVShlyape won by resignation"]

1. d4 {[%clk 0:03:00.9]} 1... Nf6 {[%clk 0:02:59.6]} 2. Nf3 {[%clk 0:03:01.1]}
2... d5 {[%clk 0:02:58.6]} 3. Bf4 {[%clk 0:03:00.4]} 3... e6 {[%clk 0:02:59.1]}
4. e3 {[%clk 0:02:59.9]} 4... Bd6 {[%clk 0:02:59.6]} 5. Bg3 {[%clk 0:02:59]}
5... O-O {[%clk 0:02:59.6]} 6. Nbd2 {[%clk 0:02:58]} 6... c5 {[%clk 0:03:00.1]}
7. c3 {[%clk 0:02:56.1]} 7... Qc7 {[%clk 0:02:59.8]} 8. Ne5 {[%clk 0:02:53.7]}
8... Nbd7 {[%clk 0:02:59]} 9. f4 {[%clk 0:02:53.3]} 9... Ne4 {[%clk 0:02:59]}
10. Nxe4 {[%clk 0:02:48.3]} 10... dxe4 {[%clk 0:02:59.9]} 11. Nc4 {[%clk
0:02:46.3]} 11... Be7 {[%clk 0:03:00.1]} 12. f5 {[%clk 0:02:45.1]} 12... Qc6
{[%clk 0:02:55.9]} 13. fxe6 {[%clk 0:02:45]} 13... Qxe6 {[%clk 0:02:50.3]} 14.
Be2 {[%clk 0:02:40.1]} 14... Bg5 {[%clk 0:02:26.5]} 15. d5 {[%clk 0:02:00.6]}
15... Qh6 {[%clk 0:02:24.3]} 16. O-O {[%clk 0:01:54.2]} 16... b5 {[%clk
0:02:19.6]} 17. Nd6 {[%clk 0:01:53.1]} 17... Bxe3+ {[%clk 0:02:18.8]} 18. Kh1
{[%clk 0:01:52.8]} 18... Nf6 {[%clk 0:02:01.9]} 19. Nxb5 {[%clk 0:01:49.8]}
19... Bd7 {[%clk 0:01:51.6]} 20. Nd6 {[%clk 0:01:45.6]} 20... Qg5 {[%clk
0:01:44.4]} 21. Nc4 {[%clk 0:01:30.4]} 21... Rfd8 {[%clk 0:00:46.3]} 22. Nxe3
{[%clk 0:01:28.8]} 22... Qxe3 {[%clk 0:00:45.8]} 23. Bf4 {[%clk 0:01:29.1]} 1-0

[Event "*** Titled Tuesday Blitz"]
[Site "Chess.com"]
[Date "2020.04.21"]
[Round "5"]
[White "Gandrade2"]
[Black "aaronmaster123"]
[Result "0-1"]
[WhiteElo "1964"]
[BlackElo "2293"]
[TimeControl "180+1"]
[EndTime "10:54:32 PDT"]
[Termination "aaronmaster123 won by resignation"]

1. d4 {[%clk 0:03:00.9]} 1... Nf6 {[%clk 0:02:59]} 2. c4 {[%clk 0:03:01.1]} 2...
a6 {[%clk 0:02:54.5]} 3. Nc3 {[%clk 0:03:00.6]} 3... c5 {[%clk 0:02:54.4]} 4. d5
{[%clk 0:03:00.8]} 4... b5 {[%clk 0:02:55]} 5. cxb5 {[%clk 0:03:00.6]} 5... axb5
{[%clk 0:02:55.9]} 6. Nxb5 {[%clk 0:02:55.9]} 6... Ba6 {[%clk 0:02:51]} 7. Nc3
{[%clk 0:02:54.3]} 7... g6 {[%clk 0:02:51.4]} 8. g3 {[%clk 0:02:54]} 8... Bg7
{[%clk 0:02:50.8]} 9. Bg2 {[%clk 0:02:53.9]} 9... d6 {[%clk 0:02:50.6]} 10. Nf3
{[%clk 0:02:53.8]} 10... O-O {[%clk 0:02:51.2]} 11. O-O {[%clk 0:02:52.7]} 11...
Nbd7 {[%clk 0:02:51.6]} 12. Rb1 {[%clk 0:02:52]} 12... Qa5 {[%clk 0:02:49]} 13.
Bd2 {[%clk 0:02:50.3]} 13... Rfb8 {[%clk 0:02:48.6]} 14. Qc2 {[%clk 0:02:38.4]}
14... Ng4 {[%clk 0:02:34.7]} 15. Rfe1 {[%clk 0:02:28]} 15... Nge5 {[%clk
0:02:33.1]} 16. b3 {[%clk 0:02:04.2]} 16... Nxf3+ {[%clk 0:02:20.6]} 17. Bxf3
{[%clk 0:02:05.1]} 17... Ne5 {[%clk 0:02:18.9]} 18. a4 {[%clk 0:01:55.1]} 18...
Qb6 {[%clk 0:02:09.5]} 19. Bg2 {[%clk 0:01:45.4]} 19... Ra7 {[%clk 0:02:01.2]}
20. h3 {[%clk 0:01:31.6]} 20... Rab7 {[%clk 0:02:00.7]} 21. Kh1 {[%clk
0:01:29.5]} 21... Nd7 {[%clk 0:01:48.5]} 22. e4 {[%clk 0:01:25.5]} 22... Ne5
{[%clk 0:01:48.3]} 23. f4 {[%clk 0:01:24.8]} 23... Nd3 {[%clk 0:01:47.9]} 24.
Re3 {[%clk 0:01:16]} 24... Nb4 {[%clk 0:01:38.4]} 25. Qd1 {[%clk 0:01:15.5]}
25... Bd4 {[%clk 0:01:34.8]} 26. Re1 {[%clk 0:01:15.4]} 26... Nd3 {[%clk
0:01:31.7]} 27. Rg1 {[%clk 0:00:54.6]} 27... Nf2+ {[%clk 0:01:31]} 0-1

[Event "*** Titled Tuesday Blitz"]
[Site "Chess.com"]
[Date "2020.04.21"]
[Round "5"]
[White "Keks2017"]
[Black "Skatchkov_V"]
[Result "0-1"]
[WhiteElo "2393"]
[BlackElo "2559"]
[TimeControl "180+1"]
[EndTime "10:54:36 PDT"]
[Termination "Skatchkov_V won by resignation"]

1. e4 {[%clk 0:02:58.6]} 1... e5 {[%clk 0:02:58.4]} 2. Nf3 {[%clk 0:02:58]} 2...
Nf6 {[%clk 0:02:58.5]} 3. Nxe5 {[%clk 0:02:57.1]} 3... d6 {[%clk 0:02:58.4]} 4.
Nf3 {[%clk 0:02:57]} 4... Nxe4 {[%clk 0:02:57.6]} 5. Nc3 {[%clk 0:02:56.9]} 5...
Nxc3 {[%clk 0:02:55.2]} 6. dxc3 {[%clk 0:02:56.9]} 6... Be7 {[%clk 0:02:55.9]}
7. Be3 {[%clk 0:02:56.5]} 7... O-O {[%clk 0:02:34.8]} 8. Qd2 {[%clk 0:02:55.9]}
8... Nd7 {[%clk 0:02:32]} 9. O-O-O {[%clk 0:02:55.1]} 9... Nf6 {[%clk
0:02:31.8]} 10. Bd3 {[%clk 0:02:53.5]} 10... c5 {[%clk 0:02:31.3]} 11. h3 {[%clk
0:02:52.7]} 11... b5 {[%clk 0:02:11.9]} 12. c4 {[%clk 0:02:42.9]} 12... Be6
{[%clk 0:01:31.6]} 13. Qe2 {[%clk 0:02:27.9]} 13... Qa5 {[%clk 0:01:16.1]} 14.
Kb1 {[%clk 0:02:24]} 14... bxc4 {[%clk 0:01:15.5]} 15. Bxc4 {[%clk 0:02:22.9]}
15... d5 {[%clk 0:01:16]} 16. Bd2 {[%clk 0:02:11.8]} 16... Qb6 {[%clk
0:01:11.6]} 17. Bb3 {[%clk 0:02:06.9]} 17... c4 {[%clk 0:01:10.4]} 18. Ba4
{[%clk 0:02:00.5]} 18... Rfb8 {[%clk 0:01:02.6]} 19. Bc3 {[%clk 0:01:36.5]}
19... Qa6 {[%clk 0:00:59]} 20. Nd4 {[%clk 0:01:29.5]} 20... Ne4 {[%clk
0:00:57.4]} 21. Qe1 {[%clk 0:01:23.9]} 21... Qxa4 {[%clk 0:00:55.4]} 22. Nxe6
{[%clk 0:01:23.4]} 22... fxe6 {[%clk 0:00:56.1]} 23. f3 {[%clk 0:01:23]} 23...
Nxc3+ {[%clk 0:00:56.2]} 0-1

[Event "*** Titled Tuesday Blitz"]
[Site "Chess.com"]
[Date "2020.04.21"]
[Round "5"]
[White "OhanyanEminChess"]
[Black "robertofabregas"]
[Result "1-0"]
[WhiteElo "2496"]
[BlackElo "2105"]
[TimeControl "180+1"]
[EndTime "10:54:39 PDT"]
[Termination "OhanyanEminChess won by resignation"]

1. e4 {[%clk 0:03:00.9]} 1... c5 {[%clk 0:02:58.7]} 2. Nf3 {[%clk 0:02:54.9]}
2... d6 {[%clk 0:02:58.2]} 3. d4 {[%clk 0:02:54.1]} 3... cxd4 {[%clk 0:02:59.1]}
4. Nxd4 {[%clk 0:02:55]} 4... Nf6 {[%clk 0:02:59]} 5. Nc3 {[%clk 0:02:55.6]}
5... a6 {[%clk 0:02:59.3]} 6. Bc4 {[%clk 0:02:50]} 6... e6 {[%clk 0:02:59.3]} 7.
Bb3 {[%clk 0:02:49.9]} 7... Nc6 {[%clk 0:02:56.4]} 8. f4 {[%clk 0:02:49.4]} 8...
Qc7 {[%clk 0:02:55]} 9. O-O {[%clk 0:02:47.3]} 9... Be7 {[%clk 0:02:53.2]} 10.
Be3 {[%clk 0:02:43.3]} 10... b5 {[%clk 0:02:51.6]} 11. f5 {[%clk 0:02:41.9]}
11... e5 {[%clk 0:02:39.6]} 12. Nxc6 {[%clk 0:02:40.4]} 12... Qxc6 {[%clk
0:02:40]} 13. Nd5 {[%clk 0:02:40.6]} 13... Bb7 {[%clk 0:02:34]} 14. Nxf6+ {[%clk
0:02:21.1]} 14... gxf6 {[%clk 0:02:20.8]} 15. Bd5 {[%clk 0:02:11.9]} 15... Qc7
{[%clk 0:02:19.6]} 16. c3 {[%clk 0:02:11.6]} 16... Bxd5 {[%clk 0:02:12.4]} 17.
Qxd5 {[%clk 0:02:09.6]} 17... Rc8 {[%clk 0:02:04.3]} 18. a4 {[%clk 0:01:54.1]}
18... Qc4 {[%clk 0:01:54]} 19. axb5 {[%clk 0:01:54]} 19... axb5 {[%clk
0:01:40.3]} 20. Ra7 {[%clk 0:01:34.2]} 20... Qxd5 {[%clk 0:01:22.7]} 21. exd5
{[%clk 0:01:35.1]} 21... O-O {[%clk 0:01:20.9]} 22. Rxe7 {[%clk 0:01:33.5]}
22... Ra8 {[%clk 0:01:14]} 23. Rf3 {[%clk 0:01:28]} 23... Ra2 {[%clk 0:01:10]}
24. Rg3+ {[%clk 0:01:27.4]} 24... Kh8 {[%clk 0:01:09.1]} 25. Bh6 {[%clk
0:01:28.3]} 25... Rfa8 {[%clk 0:01:00]} 26. Rxf7 {[%clk 0:01:23.2]} 1-0

[Event "*** Titled Tuesday Blitz"]
[Site "Chess.com"]
[Date "2020.04.21"]
[Round "5"]
[White "Frogo47"]
[Black "fridaywins"]
[Result "0-1"]
[WhiteElo "2477"]
[BlackElo "2310"]
[TimeControl "180+1"]
[EndTime "10:54:44 PDT"]
[Termination "fridaywins won by resignation"]

1. e4 {[%clk 0:03:00.9]} 1... e5 {[%clk 0:02:59]} 2. Nf3 {[%clk 0:03:00.5]} 2...
Nc6 {[%clk 0:02:59.2]} 3. Bb5 {[%clk 0:03:01]} 3... a6 {[%clk 0:02:57.8]} 4. Ba4
{[%clk 0:03:01.2]} 4... Nf6 {[%clk 0:02:57.3]} 5. O-O {[%clk 0:03:01]} 5... Be7
{[%clk 0:02:57.5]} 6. Re1 {[%clk 0:03:01]} 6... b5 {[%clk 0:02:57.7]} 7. Bb3
{[%clk 0:03:01.6]} 7... d6 {[%clk 0:02:58.6]} 8. c3 {[%clk 0:03:01.4]} 8... O-O
{[%clk 0:02:58.6]} 9. h3 {[%clk 0:03:01.7]} 9... Na5 {[%clk 0:02:58.5]} 10. Bc2
{[%clk 0:03:02]} 10... c5 {[%clk 0:02:59.1]} 11. d4 {[%clk 0:03:02.9]} 11... Nd7
{[%clk 0:02:59.4]} 12. Nbd2 {[%clk 0:02:52.5]} 12... cxd4 {[%clk 0:02:56.5]} 13.
cxd4 {[%clk 0:02:52.1]} 13... Nc6 {[%clk 0:02:56.7]} 14. Nb3 {[%clk 0:02:40.1]}
14... Bf6 {[%clk 0:02:51.4]} 15. Be3 {[%clk 0:02:22.9]} 15... a5 {[%clk
0:02:44.5]} 16. a4 {[%clk 0:02:11.4]} 16... bxa4 {[%clk 0:02:33.6]} 17. Rxa4
{[%clk 0:02:09.6]} 17... Nb6 {[%clk 0:02:32.6]} 18. Ra1 {[%clk 0:02:09.2]} 18...
Nc4 {[%clk 0:02:32.7]} 19. Bc1 {[%clk 0:01:54.3]} 19... exd4 {[%clk 0:02:02.3]}
20. Nbxd4 {[%clk 0:01:50.9]} 20... Nxd4 {[%clk 0:02:02.2]} 21. Nxd4 {[%clk
0:01:51.4]} 21... Qb6 {[%clk 0:02:02.9]} 22. e5 {[%clk 0:00:55.2]} 22... dxe5
{[%clk 0:01:50.5]} 23. Qd3 {[%clk 0:00:54.7]} 23... g6 {[%clk 0:01:47.9]} 24.
Qxc4 {[%clk 0:00:20.2]} 24... Qxd4 {[%clk 0:01:47.7]} 25. Bh6 {[%clk 0:00:20.8]}
25... Qxc4 {[%clk 0:01:43.2]} 0-1

[Event "*** Titled Tuesday Blitz"]
[Site "Chess.com"]
[Date "2020.04.21"]
[Round "5"]
[White "GM4life"]
[Black "keepitcool9499"]
[Result "1-0"]
[WhiteElo "2191"]
[BlackElo "2387"]
[TimeControl "180+1"]
[EndTime "10:54:48 PDT"]
[Termination "GM4life won by checkmate"]

1. e4 {[%clk 0:03:00.9]} 1... e6 {[%clk 0:03:00]} 2. d4 {[%clk 0:03:00.9]} 2...
d5 {[%clk 0:03:00.4]} 3. Nc3 {[%clk 0:03:01.3]} 3... Nf6 {[%clk 0:03:00.2]} 4.
e5 {[%clk 0:03:01.8]} 4... Nfd7 {[%clk 0:03:00.3]} 5. f4 {[%clk 0:03:02.3]} 5...
c5 {[%clk 0:03:00.5]} 6. Nf3 {[%clk 0:03:02.7]} 6... Nc6 {[%clk 0:03:01]} 7. Be3
{[%clk 0:03:02.8]} 7... a6 {[%clk 0:03:01.4]} 8. Qd2 {[%clk 0:03:02.9]} 8... b5
{[%clk 0:03:01.7]} 9. dxc5 {[%clk 0:03:03.5]} 9... Bxc5 {[%clk 0:03:01]} 10. Bd3
{[%clk 0:03:04]} 10... Qb6 {[%clk 0:03:00]} 11. Bf2 {[%clk 0:03:02.9]} 11...
Bxf2+ {[%clk 0:02:57.5]} 12. Qxf2 {[%clk 0:03:02.8]} 12... Nc5 {[%clk
0:02:57.1]} 13. O-O {[%clk 0:02:56.3]} 13... b4 {[%clk 0:02:56.6]} 14. Ne2
{[%clk 0:02:48]} 14... Rb8 {[%clk 0:02:54.1]} 15. Ned4 {[%clk 0:02:33.2]} 15...
Bd7 {[%clk 0:02:46.9]} 16. Rfe1 {[%clk 0:02:11.3]} 16... Nxd4 {[%clk 0:02:26]}
17. Nxd4 {[%clk 0:02:09.2]} 17... Bb5 {[%clk 0:02:19.9]} 18. Nxb5 {[%clk
0:01:56]} 18... axb5 {[%clk 0:02:20.8]} 19. Re3 {[%clk 0:01:32.2]} 19... g6
{[%clk 0:02:05.4]} 20. Kh1 {[%clk 0:01:27.7]} 20... Nxd3 {[%clk 0:02:02.3]} 21.
cxd3 {[%clk 0:01:27.1]} 21... O-O {[%clk 0:02:01.9]} 22. Rae1 {[%clk 0:01:21.3]}
22... Rfc8 {[%clk 0:02:00]} 23. Qh4 {[%clk 0:01:16.9]} 23... Rc2 {[%clk
0:01:47.5]} 24. f5 {[%clk 0:01:01.6]} 24... exf5 {[%clk 0:01:41.5]} 25. e6
{[%clk 0:01:00.7]} 25... fxe6 {[%clk 0:01:31.7]} 26. Rxe6 {[%clk 0:00:58.6]}
26... Qf2 {[%clk 0:01:27.8]} 27. Re8+ {[%clk 0:00:50.8]} 27... Rxe8 {[%clk
0:01:24.7]} 28. Rxe8+ {[%clk 0:00:51.7]} 28... Kg7 {[%clk 0:01:19.6]} 29. Re7+
{[%clk 0:00:51.5]} 29... Kg8 {[%clk 0:01:13.9]} 30. Qxh7+ {[%clk 0:00:51.4]}
30... Kf8 {[%clk 0:01:13.5]} 31. Qf7# {[%clk 0:00:51.9]} 1-0

[Event "*** Titled Tuesday Blitz"]
[Site "Chess.com"]
[Date "2020.04.21"]
[Round "5"]
[White "Nara_Kh"]
[Black "AlanZhang"]
[Result "1-0"]
[WhiteElo "2352"]
[BlackElo "2169"]
[TimeControl "180+1"]
[EndTime "10:54:50 PDT"]
[Termination "Nara_Kh won by resignation"]

1. e4 {[%clk 0:03:00.9]} 1... e5 {[%clk 0:02:59.5]} 2. Nf3 {[%clk 0:03:00.5]}
2... Nc6 {[%clk 0:02:59.8]} 3. Bb5 {[%clk 0:02:59.8]} 3... a6 {[%clk 0:02:59.5]}
4. Ba4 {[%clk 0:02:58.1]} 4... Nf6 {[%clk 0:02:59.2]} 5. O-O {[%clk 0:02:58.2]}
5... Ke7 {[%clk 0:02:59.1]} 6. Bxc6 {[%clk 0:02:49.1]} 6... dxc6 {[%clk
0:02:43.7]} 7. Nxe5 {[%clk 0:02:45]} 7... Be6 {[%clk 0:02:35.3]} 8. Nc3 {[%clk
0:02:39.2]} 8... g6 {[%clk 0:02:34.4]} 9. b3 {[%clk 0:02:33.6]} 9... Bg7 {[%clk
0:02:30.4]} 10. Ba3+ {[%clk 0:02:30.4]} 10... Ke8 {[%clk 0:02:29.7]} 11. d4
{[%clk 0:02:29.6]} 11... Nd7 {[%clk 0:02:21.8]} 12. f4 {[%clk 0:02:23]} 12... c5
{[%clk 0:01:52.9]} 13. Nf3 {[%clk 0:01:43.7]} 13... cxd4 {[%clk 0:01:26]} 14.
Nxd4 {[%clk 0:01:39.3]} 14... c5 {[%clk 0:01:25.5]} 15. Nxe6 {[%clk 0:01:37.8]}
15... fxe6 {[%clk 0:01:26.4]} 16. Bb2 {[%clk 0:01:35]} 16... Qa5 {[%clk
0:01:15.1]} 17. e5 {[%clk 0:01:33.6]} 17... Rd8 {[%clk 0:01:06.8]} 18. Qg4
{[%clk 0:01:32.5]} 18... Kf7 {[%clk 0:00:52.5]} 19. Ne4 {[%clk 0:01:29.9]} 19...
Nf8 {[%clk 0:00:45.6]} 20. Rad1 {[%clk 0:01:10.9]} 1-0

[Event "*** Titled Tuesday Blitz"]
[Site "Chess.com"]
[Date "2020.04.21"]
[Round "5"]
[White "KrolPawel92OnTwitch"]
[Black "evgenyermolaev"]
[Result "1-0"]
[WhiteElo "2696"]
[BlackElo "2482"]
[TimeControl "180+1"]
[EndTime "10:54:52 PDT"]
[Termination "KrolPawel92OnTwitch won by resignation"]

1. e4 {[%clk 0:03:00.9]} 1... c5 {[%clk 0:00:48.6]} 2. Nf3 {[%clk 0:03:00.5]}
2... d6 {[%clk 0:00:48.8]} 3. g3 {[%clk 0:03:00.6]} 3... Nf6 {[%clk 0:00:48.7]}
4. c3 {[%clk 0:03:00.2]} 4... g6 {[%clk 0:00:48.9]} 5. Bg2 {[%clk 0:03:00.2]}
5... Bg7 {[%clk 0:00:49.2]} 6. O-O {[%clk 0:03:00.4]} 6... O-O {[%clk
0:00:49.5]} 7. Re1 {[%clk 0:03:00.8]} 7... Nc6 {[%clk 0:00:49.5]} 8. d4 {[%clk
0:03:01.1]} 8... cxd4 {[%clk 0:00:49.4]} 9. cxd4 {[%clk 0:03:01.4]} 9... Bg4
{[%clk 0:00:49.5]} 10. Nc3 {[%clk 0:02:57]} 10... Nd7 {[%clk 0:00:48.3]} 11. Be3
{[%clk 0:02:55.7]} 11... Nb6 {[%clk 0:00:43.4]} 12. Qd3 {[%clk 0:02:47.7]} 12...
Bxf3 {[%clk 0:00:41.1]} 13. Bxf3 {[%clk 0:02:47.5]} 13... Rc8 {[%clk 0:00:41.2]}
14. Bg4 {[%clk 0:02:42.3]} 14... Nb4 {[%clk 0:00:32.7]} 15. Qe2 {[%clk
0:02:36.7]} 15... e6 {[%clk 0:00:24.3]} 16. a3 {[%clk 0:02:35]} 16... Nc6 {[%clk
0:00:23.3]} 17. d5 {[%clk 0:02:34.5]} 17... Ne5 {[%clk 0:00:22.8]} 18. dxe6
{[%clk 0:02:34.4]} 18... Nxg4 {[%clk 0:00:18.7]} 19. Qxg4 {[%clk 0:02:35.3]}
19... fxe6 {[%clk 0:00:17.2]} 20. Qxe6+ {[%clk 0:02:34.8]} 20... Kh8 {[%clk
0:00:17.7]} 21. Rad1 {[%clk 0:02:31.2]} 21... Nc4 {[%clk 0:00:17.2]} 22. Bc1
{[%clk 0:02:16.5]} 22... Qb6 {[%clk 0:00:12.1]} 23. Re2 {[%clk 0:02:16.2]} 23...
Bd4 {[%clk 0:00:10]} 24. Nd5 {[%clk 0:02:12.1]} 24... Bxf2+ {[%clk 0:00:10]} 25.
Kg2 {[%clk 0:02:11.2]} 25... Qc5 {[%clk 0:00:10.4]} 26. b4 {[%clk 0:02:07.6]}
26... Qc6 {[%clk 0:00:06.4]} 27. Rxf2 {[%clk 0:02:04.4]} 27... Rxf2+ {[%clk
0:00:07.3]} 28. Kxf2 {[%clk 0:02:04.6]} 28... Ne5 {[%clk 0:00:07.8]} 29. Qf6+
{[%clk 0:02:01]} 1-0

[Event "*** Titled Tuesday Blitz"]
[Site "Chess.com"]
[Date "2020.04.21"]
[Round "5"]
[White "kingofthenil"]
[Black "Azatnew"]
[Result "0-1"]
[WhiteElo "2530"]
[BlackElo "2776"]
[TimeControl "180+1"]
[EndTime "10:54:52 PDT"]
[Termination "Azatnew won by checkmate"]

1. d4 {[%clk 0:03:00.9]} 1... Nf6 {[%clk 0:02:59.7]} 2. c4 {[%clk 0:03:00.9]}
2... g6 {[%clk 0:03:00.1]} 3. Nc3 {[%clk 0:03:01]} 3... Bg7 {[%clk 0:03:00.6]}
4. Nf3 {[%clk 0:03:01.3]} 4... O-O {[%clk 0:03:01]} 5. Bg5 {[%clk 0:02:54.4]}
5... c5 {[%clk 0:03:01.1]} 6. d5 {[%clk 0:02:44.7]} 6... e6 {[%clk 0:02:45.2]}
7. e3 {[%clk 0:02:41.3]} 7... exd5 {[%clk 0:02:42.5]} 8. cxd5 {[%clk 0:02:42.2]}
8... d6 {[%clk 0:02:42.7]} 9. Be2 {[%clk 0:02:37.7]} 9... Na6 {[%clk 0:02:42.8]}
10. O-O {[%clk 0:02:35.8]} 10... Nc7 {[%clk 0:02:42.9]} 11. a4 {[%clk 0:02:33]}
11... Rb8 {[%clk 0:02:40.4]} 12. e4 {[%clk 0:02:26]} 12... Re8 {[%clk
0:02:40.3]} 13. Nd2 {[%clk 0:02:25.4]} 13... a6 {[%clk 0:02:37.1]} 14. a5 {[%clk
0:02:15.9]} 14... b5 {[%clk 0:02:37.1]} 15. axb6 {[%clk 0:02:15.7]} 15... Rxb6
{[%clk 0:02:37.6]} 16. Nc4 {[%clk 0:02:16.1]} 16... Rb4 {[%clk 0:02:38]} 17. f3
{[%clk 0:02:15.8]} 17... Nb5 {[%clk 0:02:32.1]} 18. Na5 {[%clk 0:02:12.9]} 18...
Rxb2 {[%clk 0:02:22.9]} 19. Na4 {[%clk 0:02:08.5]} 19... Rxe2 {[%clk 0:01:56.6]}
20. Nc6 {[%clk 0:01:49]} 20... Rxg2+ {[%clk 0:01:52.6]} 21. Kxg2 {[%clk
0:01:49.9]} 21... Qd7 {[%clk 0:01:53.1]} 22. Nb6 {[%clk 0:01:44.5]} 22... Qh3+
{[%clk 0:01:52.7]} 23. Kg1 {[%clk 0:01:39.6]} 23... Nxe4 {[%clk 0:01:10.6]} 24.
fxe4 {[%clk 0:01:09.4]} 24... Rxe4 {[%clk 0:01:11.5]} 25. Nxc8 {[%clk
0:00:59.4]} 25... Rg4+ {[%clk 0:01:10.7]} 26. Kh1 {[%clk 0:00:50.1]} 26... Qg2#
{[%clk 0:01:10.3]} 0-1

[Event "*** Titled Tuesday Blitz"]
[Site "Chess.com"]
[Date "2020.04.21"]
[Round "5"]
[White "SamuelGhimpu2003"]
[Black "LiemLe"]
[Result "0-1"]
[WhiteElo "2667"]
[BlackElo "2996"]
[TimeControl "180+1"]
[EndTime "10:54:56 PDT"]
[Termination "LiemLe won by resignation"]

1. Nf3 {[%clk 0:03:00.9]} 1... Nf6 {[%clk 0:02:58]} 2. b3 {[%clk 0:02:59.8]}
2... g6 {[%clk 0:02:56.1]} 3. Bb2 {[%clk 0:03:00.7]} 3... Bg7 {[%clk 0:02:56.7]}
4. g3 {[%clk 0:03:00.6]} 4... b6 {[%clk 0:02:56.2]} 5. Bg2 {[%clk 0:03:01.5]}
5... Bb7 {[%clk 0:02:56.5]} 6. O-O {[%clk 0:03:02.1]} 6... O-O {[%clk
0:02:56.5]} 7. c4 {[%clk 0:03:02.5]} 7... e6 {[%clk 0:02:52.5]} 8. d3 {[%clk
0:03:00.1]} 8... c5 {[%clk 0:02:51.6]} 9. Nbd2 {[%clk 0:02:59.5]} 9... Nc6
{[%clk 0:02:43.4]} 10. Rc1 {[%clk 0:02:55.3]} 10... Rc8 {[%clk 0:02:33.8]} 11.
a3 {[%clk 0:02:51.9]} 11... Qe7 {[%clk 0:02:31]} 12. Qc2 {[%clk 0:02:50.7]}
12... Rfd8 {[%clk 0:02:28.5]} 13. Qb1 {[%clk 0:02:48.4]} 13... d5 {[%clk
0:02:18.4]} 14. cxd5 {[%clk 0:02:49.3]} 14... exd5 {[%clk 0:02:09.8]} 15. e3
{[%clk 0:02:48.7]} 15... Ne8 {[%clk 0:01:59.5]} 16. Bxg7 {[%clk 0:02:44.3]}
16... Nxg7 {[%clk 0:02:00.4]} 17. d4 {[%clk 0:02:44.4]} 17... cxd4 {[%clk
0:01:59.1]} 18. Nxd4 {[%clk 0:02:23.5]} 18... Nxd4 {[%clk 0:01:58.7]} 19. exd4
{[%clk 0:02:23]} 19... Qxa3 {[%clk 0:01:58.1]} 20. h4 {[%clk 0:02:01]} 20... a5
{[%clk 0:01:40.7]} 21. Nf3 {[%clk 0:01:56]} 21... Ba6 {[%clk 0:01:37]} 22. Rfe1
{[%clk 0:01:54.1]} 22... Rxc1 {[%clk 0:01:33.5]} 23. Rxc1 {[%clk 0:01:53.9]}
23... Bd3 {[%clk 0:01:33.6]} 24. Qa1 {[%clk 0:01:49.5]} 24... Qxa1 {[%clk
0:01:33.2]} 25. Rxa1 {[%clk 0:01:50.4]} 25... Bc2 {[%clk 0:01:23.1]} 26. Nd2
{[%clk 0:01:48.7]} 26... Ne6 {[%clk 0:01:17.2]} 27. b4 {[%clk 0:01:41.5]} 27...
axb4 {[%clk 0:01:14.9]} 28. Ra6 {[%clk 0:01:42.4]} 28... Rd6 {[%clk 0:01:08.3]}
29. Nf1 {[%clk 0:00:56.2]} 29... b3 {[%clk 0:01:06.7]} 30. Ne3 {[%clk
0:00:54.1]} 30... b2 {[%clk 0:01:06.4]} 0-1

[Event "*** Titled Tuesday Blitz"]
[Site "Chess.com"]
[Date "2020.04.21"]
[Round "5"]
[White "bazar-wokzal"]
[Black "Rozum_Ivan"]
[Result "1-0"]
[WhiteElo "2539"]
[BlackElo "2710"]
[TimeControl "180+1"]
[EndTime "10:54:59 PDT"]
[Termination "bazar-wokzal won by resignation"]

1. e4 {[%clk 0:03:00.9]} 1... d6 {[%clk 0:02:58.8]} 2. f4 {[%clk 0:03:00.1]}
2... Nf6 {[%clk 0:02:58.3]} 3. Nc3 {[%clk 0:02:59.2]} 3... g6 {[%clk 0:02:56.6]}
4. Nf3 {[%clk 0:02:57.8]} 4... c5 {[%clk 0:02:55.8]} 5. e5 {[%clk 0:02:51.7]}
5... dxe5 {[%clk 0:02:53.8]} 6. fxe5 {[%clk 0:02:51.6]} 6... Nd5 {[%clk
0:02:53.7]} 7. Bc4 {[%clk 0:02:50.5]} 7... Nxc3 {[%clk 0:02:49.9]} 8. bxc3
{[%clk 0:02:48]} 8... Bg7 {[%clk 0:02:49.7]} 9. O-O {[%clk 0:02:46.7]} 9... O-O
{[%clk 0:02:49.9]} 10. d4 {[%clk 0:02:45.8]} 10... Nc6 {[%clk 0:02:48.4]} 11.
Ng5 {[%clk 0:02:40]} 11... e6 {[%clk 0:02:42.4]} 12. Be3 {[%clk 0:02:37.2]}
12... cxd4 {[%clk 0:02:39.8]} 13. cxd4 {[%clk 0:02:36.6]} 13... Qc7 {[%clk
0:02:18.1]} 14. Qg4 {[%clk 0:02:10.7]} 14... b5 {[%clk 0:01:28.5]} 15. Bd3
{[%clk 0:02:04.2]} 15... Bb7 {[%clk 0:01:25.7]} 16. Qh4 {[%clk 0:02:01.7]} 16...
h5 {[%clk 0:01:22.5]} 17. g4 {[%clk 0:01:47.6]} 17... Nxe5 {[%clk 0:01:11.9]}
18. gxh5 {[%clk 0:01:41.8]} 18... Nxd3 {[%clk 0:00:48.9]} 19. hxg6 {[%clk
0:01:39.2]} 19... Rfc8 {[%clk 0:00:10.1]} 20. gxf7+ {[%clk 0:01:30.8]} 1-0